fUST/lending_fUST_20251103
["ID","MTS","AMOUNT","RATE_DAILY","PERIOD"]
[392914126,1762133520332,501.66609727,0.00037504,60]
[392914127,1762133520983,512.19728373,0.00037504,60]
[392914128,1762133522065,500.0,0.00037504,60]
[392914129,1762133522313,174.5829281,0.00037504,60]
[392914130,1762133525251,517.36489283,0.00037504,60]
[392914131,1762133528888,535.1452443,0.00037504,60]
[392914132,1762133530117,511.48121129,0.00037504,60]
[392914134,1762133535049,502.57623975,0.00037504,60]
[392914140,1762133538200,501.75327671,0.00037504,60]
[392914141,1762133541677,506.83022765,0.00037504,60]
[392914142,1762133542683,3012.0062589,0.00017536,2]
[392914144,1762133543645,501.58529693,0.00037504,60]
[392914145,1762133544468,538.72261578,0.00037504,60]
[392914146,1762133545090,518.94802103,0.00037504,60]
[392914147,1762133545633,508.64136272,0.00037504,60]
[392914148,1762133545909,503.8465093,0.00037504,120]
[392914151,1762133549464,500.0,0.00037504,60]
[392914152,1762133549798,287.61574349,0.00037504,60]
[392914153,1762133550576,512.93650908,0.00037504,60]
[392914154,1762133552530,500.77899821,0.00037504,60]
[392914155,1762133553112,560.72691526,0.00037504,60]
[392914156,1762133554155,340.81243835,0.00037504,21]
[392914157,1762133557351,603.04005587,0.00037499,60]
[392914158,1762133557414,506.92124223,0.00037499,60]
[392914159,1762133557513,589.8,0.0003287,120]
[392914160,1762133557916,500.0,0.00037499,60]
[392914161,1762133558152,197.99589795,0.00037499,60]
[392914162,1762133558186,-150.0,0.00018062,2]
[392914163,1762133558208,-91.0,0.00018179,2]
[392914164,1762133560611,501.22605269,0.00037499,60]
[392914165,1762133560849,500.0,0.00037499,60]
[392914166,1762133561086,262.16187583,0.00037499,60]
[392914167,1762133562533,562.45722636,0.00037499,60]
[392914168,1762133563832,558.12075812,0.00037499,60]
[392914169,1762133565582,504.18078981,0.00037499,60]
[392914170,1762133567361,532.82419329,0.00037499,60]
[392914171,1762133567420,500.7401593,0.00037499,60]
[392914172,1762133570315,500.0,0.00037499,60]
[392914173,1762133570564,644.81967983,0.00037499,60]
[392914174,1762133571698,250.36735799,0.00037499,60]
[392914175,1762133572187,500.0,0.00037499,60]
[392914176,1762133572426,583.70284859,0.00037499,60]
[392914177,1762133573927,501.41116953,0.00037499,60]
[392914178,1762133574043,500.0,0.00037499,60]
[392914179,1762133574278,500.0,0.00037499,60]
[392914180,1762133574527,304.55775445,0.00037499,60]
[392914181,1762133579433,526.60600433,0.00037499,60]
[392914182,1762133579500,500.0,0.00037499,60]
[392914183,1762133579717,530.80119409,0.00037499,60]
[392914184,1762133581172,508.21679793,0.00037499,60]
[392914185,1762133581341,516.24077109,0.00037499,60]
[392914186,1762133585260,366.38300762,0.00032876,120]
[392914187,1762133587195,500.0,0.00037499,60]
[392914188,1762133587424,500.0,0.00037499,60]
[392914189,1762133587666,266.48894513,0.00037499,60]
[392914190,1762133589191,504.84629644,0.00037499,60]
[392914191,1762133589855,265.17006209,0.00037499,60]
[392914192,1762133591598,311.04727983,0.00037499,60]
[392914193,1762133592684,505.5543764,0.00037499,60]
[392914194,1762133593915,500.0,0.00037499,60]
[392914195,1762133594039,363.11251674,0.00037499,60]
[392914196,1762133594905,500.0,0.00037499,60]
[392914197,1762133595300,503.15934629,0.00037499,60]
[392914198,1762133595818,519.82660152,0.00037499,60]
[392914199,1762133597839,548.79604719,0.00037499,60]
[392914200,1762133598703,217.49172584,0.00037499,60]
[392914201,1762133601363,510.00066501,0.00037499,60]
[392914202,1762133602644,509.80135801,0.00037499,60]
[392914203,1762133605059,457.33076215,0.00037499,60]
[392914204,1762133606178,501.27433236,0.00037499,60]
[392914205,1762133606653,503.68001159,0.00037499,60]
[392914206,1762133606834,500.0,0.00037499,60]
[392914207,1762133607092,279.45127839,0.00037499,60]
[392914208,1762133608309,503.20804231,0.00037499,60]
[392914209,1762133608574,537.58492701,0.00037499,30]
[392914210,1762133609726,507.79801571,0.00037499,60]
[392914211,1762133610071,501.27633342,0.00037499,60]
[392914212,1762133610516,500.0,0.00037499,60]
[392914213,1762133610774,400.35541667,0.00037499,60]
[392914214,1762133610833,531.8493322,0.00037499,60]
[392914215,1762133611848,503.58243853,0.00037499,60]
[392914216,1762133612710,570.61344568,0.00037499,60]
[392914217,1762133613872,509.36416118,0.00037499,60]
[392914218,1762133614167,500.76352348,0.00037499,60]
[392914219,1762133614553,576.6344311,0.00037499,60]
[392914220,1762133614618,501.72305416,0.00037499,60]
[392914221,1762133614979,585.44679059,0.00037499,60]
[392914222,1762133616329,517.32443372,0.00037499,60]
[392914223,1762133618168,-169.43549047,0.00018079,2]
[392914224,1762133618362,500.0,0.00037499,60]
[392914225,1762133618615,522.60631507,0.00037499,60]
[392914226,1762133619693,510.9086172,0.00037499,60]
[392914227,1762133620475,-247.45977266,0.00018079,2]
[392914228,1762133622487,500.0,0.00037499,60]
[392914229,1762133622737,534.66133036,0.00037499,60]
[392914230,1762133623170,-161.74352291,0.00018079,2]
[392914231,1762133624031,501.72028046,0.00037499,60]
[392914232,1762133624566,510.19910717,0.00037499,60]
[392914233,1762133624625,503.91315913,0.00037499,60]
[392914234,1762133624731,-410.45908845,0.00018079,2]
[392914235,1762133626416,519.97618701,0.00037499,60]
[392914236,1762133628620,504.16491828,0.00037499,60]
[392914237,1762133629010,-176.71633374,0.00018079,2]
[392914239,1762133630604,516.55683412,0.00037499,60]
[392914240,1762133634011,10000.0,0.00032877,120]
[392914241,1762133634795,501.53773196,0.00037499,60]
[392914242,1762133634856,501.73082869,0.00037499,60]
[392914243,1762133636736,500.0,0.00037499,60]
[392914244,1762133636904,348.66753878,0.00037499,60]
[392914245,1762133639532,502.25962168,0.00037499,60]
[392914246,1762133639719,501.61272249,0.00037499,60]
[392914247,1762133641252,507.60470824,0.00037499,60]
[392914248,1762133641333,503.76747907,0.00037499,60]
[392914249,1762133641696,513.88875586,0.00037499,60]
[392914250,1762133641968,502.80359848,0.00037499,60]
[392914251,1762133642295,544.77424366,0.00037499,60]
[392914252,1762133642388,328.74000801,0.00037499,60]
[392914253,1762133643196,521.01371186,0.00037499,60]
[392914254,1762133644196,547.16793125,0.00037499,60]
[392914255,1762133645205,503.74759276,0.00037499,60]
[392914256,1762133645772,503.21967028,0.00037499,60]
[392914257,1762133645838,200.35775769,0.00037499,60]
[392914258,1762133645924,500.0,0.00037499,60]
[392914259,1762133646184,500.0,0.00037499,60]
[392914260,1762133646426,584.52758951,0.00037499,60]
[392914261,1762133646829,539.64599638,0.00037499,60]
[392914262,1762133646890,507.17727169,0.00037499,60]
[392914263,1762133648656,502.752714,0.00037499,60]
[392914264,1762133648739,526.84280038,0.00037499,60]
[392914265,1762133648813,501.92429242,0.00037499,60]
[392914266,1762133649745,1756.13,0.00032877,120]
[392914267,1762133650301,203.573298,0.00017507,2]
[392914268,1762133650782,501.57854445,0.00037499,60]
[392914269,1762133652186,500.95285136,0.00037499,60]
[392914270,1762133653361,505.02581396,0.00037499,60]
[392914271,1762133654064,508.34737653,0.00037499,60]
[392914272,1762133655617,501.75792253,0.00037499,60]
[392914273,1762133658072,625.81701353,0.00037499,60]
[392914274,1762133660773,535.3071305,0.00037499,60]
[392914275,1762133661109,500.0,0.00037499,60]
[392914276,1762133661169,518.27228943,0.00037499,60]
[392914277,1762133661346,176.01852853,0.00037499,60]
[392914278,1762133662864,500.0,0.00037499,60]
[392914279,1762133662920,502.96422917,0.00037499,60]
[392914280,1762133663106,500.0,0.00037499,60]
[392914281,1762133663816,513.62628733,0.00037499,60]
[392914282,1762133664049,4939.0,0.00037499,60]
[392914283,1762133664569,634.44528854,0.00037499,60]
[392914284,1762133664737,542.18215107,0.00037499,60]
[392914285,1762133667060,503.07626317,0.00037499,60]
[392914286,1762133667658,506.22886157,0.00037499,60]
[392914287,1762133668182,457.08669931,0.00037499,60]
[392914288,1762133668322,516.43522222,0.00037499,60]
[392914289,1762133670534,504.08367933,0.00037499,60]
[392914290,1762133670625,500.96111111,0.00037499,60]
[392914291,1762133671047,508.4467438,0.00037499,60]
[392914292,1762133672165,509.29904721,0.00037499,60]
[392914293,1762133672311,523.65212241,0.00037499,60]
[392914294,1762133673543,503.47692015,0.00037499,60]
[392914295,1762133673940,502.87425963,0.00037499,60]
[392914296,1762133674804,513.10336181,0.00037499,60]
[392914297,1762133677317,214.42200507,0.00037499,60]
[392914298,1762133677746,501.08355623,0.00037499,60]
[392914299,1762133678090,639.10738991,0.00037499,60]
[392914300,1762133678605,509.84505527,0.00037499,60]
[392914301,1762133680391,516.52990158,0.00037499,60]
[392914302,1762133681102,501.93946173,0.00037499,60]
[392914303,1762133682916,504.65455178,0.00037499,60]
[392914304,1762133684225,501.73342214,0.00037499,60]
[392914305,1762133686124,504.34187455,0.00037499,60]
[392914306,1762133687326,501.66109628,0.00037499,60]
[392914307,1762133687488,559.51681933,0.00037499,60]
[392914308,1762133687951,509.67285794,0.00037499,60]
[392914309,1762133688379,500.0,0.00037499,60]
[392914310,1762133688631,517.51880336,0.00037499,60]
[392914311,1762133689765,503.13553133,0.00037499,60]
[392914312,1762133689821,502.96236705,0.00037499,60]
[392914313,1762133690374,556.78051651,0.00037499,60]
[392914314,1762133691105,314.12636979,0.00037499,60]
[392914315,1762133691537,623.85754213,0.00037499,60]
[392914316,1762133691982,500.96952012,0.00037499,60]
[392914317,1762133692502,558.95124172,0.00037499,60]
[392914318,1762133693146,510.04744461,0.00037499,60]
[392914319,1762133693349,502.82125408,0.00037499,60]
[392914320,1762133693641,512.95345651,0.00037499,60]
[392914321,1762133694585,528.99895822,0.00037499,60]
[392914322,1762133695993,520.57711674,0.00037499,60]
[392914323,1762133696132,562.02882783,0.00037499,60]
[392914324,1762133696345,552.92463424,0.00037499,60]
[392914325,1762133696510,506.24756373,0.00037499,60]
[392914326,1762133696817,502.32352846,0.00037499,60]
[392914327,1762133697942,511.87983004,0.00037499,60]
[392914328,1762133698189,500.0,0.00037499,60]
[392914329,1762133698251,599.23538959,0.00037499,60]
[392914330,1762133699290,500.0,0.00037499,60]
[392914331,1762133699519,155.22311943,0.00037499,60]
[392914332,1762133700387,512.36293959,0.00037499,60]
[392914333,1762133701574,502.4745907,0.00037499,60]
[392914334,1762133702303,500.94324362,0.00037499,60]
[392914335,1762133704534,500.70793679,0.00037499,60]
[392914336,1762133705137,502.20480285,0.00037499,60]
[392914338,1762133707241,514.1996831,0.00037499,60]
[392914339,1762133714186,502.26556849,0.00037499,60]
[392914340,1762133717648,416.30873253,0.00037499,60]
[392914341,1762133721045,521.12806334,0.00037499,60]
[392914342,1762133721637,523.02711094,0.00037499,60]
[392914343,1762133722040,505.74553374,0.00037499,60]
[392914344,1762133723922,262.36038187,0.00037499,60]
[392914345,1762133724747,505.37677374,0.00037499,60]
[392914347,1762133726508,599.47849282,0.00037499,60]
[392914348,1762133728396,503.33471225,0.00037499,60]
[392914349,1762133729133,501.82680116,0.00037499,60]
[392914350,1762133729334,501.08021783,0.00037499,60]
[392914351,1762133730239,505.9230015,0.00037499,60]
[392914352,1762133732006,509.53748054,0.00037499,60]
[392914353,1762133732137,500.0,0.00037499,60]
[392914354,1762133732389,533.16477763,0.00037499,60]
[392914355,1762133733719,377.39557567,0.00037499,60]
[392914356,1762133733800,500.66425419,0.00037499,60]
[392914357,1762133733877,506.47613492,0.00037499,60]
[392914358,1762133735428,521.69249574,0.00037499,60]
[392914359,1762133735646,500.0,0.00037499,60]
[392914360,1762133736040,566.6998097,0.00037499,60]
[392914361,1762133737370,554.40857181,0.00037499,60]
[392914363,1762133738871,437.77525446,0.00037499,60]
[392914364,1762133739609,1200.9664558,0.00017563,2]
[392914365,1762133741576,500.44812806,0.00037499,60]
[392914366,1762133742325,648.66268796,0.00037499,60]
[392914367,1762133742389,506.03002353,0.00037499,60]
[392914368,1762133742573,504.02031691,0.00037499,60]
[392914369,1762133746995,500.0,0.00037499,60]
[392914370,1762133747171,153.58271735,0.00037499,60]
[392914371,1762133748373,229.62957732,0.00037499,60]
[392914372,1762133749677,500.0,0.00037499,60]
[392914373,1762133749941,547.87086209,0.00037499,60]
[392914374,1762133750462,505.59818729,0.00037499,60]
[392914375,1762133752274,1207.0,0.00037499,60]
[392914376,1762133752478,502.53297499,0.00037499,60]
[392914377,1762133752595,500.0,0.00037499,60]
[392914378,1762133752831,556.25680647,0.00037499,60]
[392914379,1762133753527,502.36996046,0.00037499,60]
[392914380,1762133754272,502.53958572,0.00037499,60]
[392914381,1762133754742,595.03293714,0.00037499,60]
[392914382,1762133755290,502.66690035,0.00037499,60]
[392914383,1762133756311,502.72957256,0.00037499,60]
[392914384,1762133757763,501.36379474,0.00037499,60]
[392914385,1762133761403,500.0,0.00037499,60]
[392914386,1762133763150,498.08,0.00037499,60]
[392914387,1762133763682,500.71160618,0.00037499,60]
[392914388,1762133766158,504.57181603,0.00037499,60]
[392914389,1762133768166,-42.79094791,0.00018079,2]
[392914390,1762133768192,-361.69024812,0.00018113,2]
[392914391,1762133769096,362.84641454,0.00037499,60]
[392914392,1762133769729,557.28822867,0.00037499,60]
[392914393,1762133771068,-215.30975188,0.00018113,2]
[392914394,1762133771096,-200.15509855,0.00018127,2]
[392914395,1762133771234,501.57920399,0.00037499,60]
[392914396,1762133772524,500.0,0.00037499,60]
[392914397,1762133772804,517.25662397,0.00037499,60]
[392914398,1762133773836,-220.1793355,0.00018127,2]
[392914399,1762133774556,500.0,0.00037499,60]
[392914400,1762133774812,337.61823585,0.00037499,60]
[392914401,1762133774886,553.74289845,0.00037499,60]
[392914402,1762133775871,527.38001857,0.00037499,60]
[392914403,1762133776659,505.11609918,0.00037499,60]
[392914404,1762133778554,502.5971283,0.00037499,60]
[392914405,1762133779804,510.60838557,0.00037499,60]
[392914406,1762133780855,632.66,0.00037499,60]
[392914407,1762133782456,503.14922419,0.00037499,60]
[392914408,1762133782847,500.0,0.00037499,60]
[392914409,1762133784280,500.0,0.00037499,60]
[392914410,1762133784555,567.64511521,0.00037499,60]
[392914411,1762133785380,223.21,0.00037499,60]
[392914412,1762133786691,501.76986853,0.00037499,60]
[392914413,1762133788746,500.0,0.00037499,60]
[392914414,1762133789021,534.29250757,0.00037499,60]
[392914415,1762133789504,501.77179651,0.00037499,60]
[392914416,1762133789663,500.0,0.00037499,60]
[392914417,1762133789896,501.97210519,0.00037499,60]
[392914418,1762133790826,502.23185623,0.00037499,60]
[392914419,1762133791329,537.90122871,0.00037499,60]
[392914420,1762133791552,540.81099993,0.00037499,60]
[392914421,1762133792899,500.0,0.00037499,60]
[392914422,1762133793117,506.05631024,0.00037499,60]
[392914423,1762133793182,641.27032231,0.00037499,60]
[392914424,1762133793249,509.15108245,0.00037499,60]
[392914425,1762133794910,503.31392257,0.00037499,60]
[392914426,1762133796075,504.93416893,0.00037499,60]
[392914427,1762133797631,407.44,0.00037499,60]
[392914428,1762133801903,500.0,0.00037499,60]
[392914429,1762133802157,503.17333433,0.00037499,60]
[392914430,1762133804047,502.85874601,0.00037499,60]
[392914431,1762133806303,583.38866898,0.00037499,60]
[392914432,1762133806381,500.0,0.00037499,60]
[392914433,1762133806574,504.37773306,0.00037499,60]
[392914434,1762133807232,453.92,0.00037499,60]
[392914435,1762133809652,504.46539473,0.00037499,60]
[392914436,1762133810728,1835.5270155,0.00017508,2]
[392914437,1762133811084,500.0,0.00037499,60]
[392914439,1762133814307,500.0,0.00037499,60]
[392914440,1762133814556,502.22558547,0.00037499,60]
[392914441,1762133815124,500.0,0.00037499,60]
[392914442,1762133815440,302.94,0.00037499,60]
[392914443,1762133816623,503.29338739,0.00037499,60]
[392914444,1762133819448,500.0,0.00037499,60]
[392914445,1762133819757,500.0,0.00037499,60]
[392914446,1762133819942,503.80533932,0.00037499,60]
[392914448,1762133824201,501.09757122,0.00037499,60]
[392914449,1762133824612,500.0,0.00037499,60]
[392914450,1762133827339,500.0,0.00037499,60]
[392914451,1762133827436,514.03571463,0.00037499,60]
[392914452,1762133827570,505.49546816,0.00037499,60]
[392914453,1762133829396,505.26246353,0.00037499,60]
[392914454,1762133829658,502.1583139,0.00037499,60]
[392914455,1762133830345,500.0,0.00037499,60]
[392914456,1762133830926,500.0,0.00037499,60]
[392914457,1762133831169,502.28466267,0.00037499,60]
[392914458,1762133831383,500.0,0.00037499,60]
[392914459,1762133831634,521.22247311,0.00037499,60]
[392914460,1762133832873,344.19,0.00037499,60]
[392914461,1762133833306,503.79013753,0.00037499,60]
[392914462,1762133833900,612.06,0.00037499,60]
[392914463,1762133834327,500.0,0.00037499,60]
[392914464,1762133834615,510.69090193,0.00037499,60]
[392914465,1762133835687,500.0,0.00037499,60]
[392914466,1762133836824,500.0,0.00037499,60]
[392914467,1762133838160,500.0,0.00037499,60]
[392914468,1762133838515,501.798935,0.00037499,60]
[392914469,1762133841341,500.0,0.00037499,60]
[392914470,1762133841930,502.6091575,0.00037499,60]
[392914471,1762133842390,583.79025429,0.00037499,60]
[392914472,1762133845268,500.0,0.00037499,60]
[392914473,1762133846386,500.0,0.00037499,60]
[392914474,1762133846833,500.0,0.00037499,60]
[392914475,1762133847074,502.71426502,0.00037499,60]
[392914476,1762133848670,500.0,0.00037499,60]
[392914477,1762133848988,500.0,0.00037499,60]
[392914478,1762133849213,502.85368016,0.00037499,60]
[392914479,1762133850764,500.0,0.00037499,60]
[392914480,1762133850827,503.42782459,0.00037499,60]
[392914481,1762133850935,502.87546308,0.00037499,60]
[392914482,1762133851659,500.0,0.00037499,60]
[392914483,1762133851885,510.22308162,0.00037499,60]
[392914484,1762133852568,500.0,0.00037499,60]
[392914485,1762133852792,500.0,0.00037499,60]
[392914486,1762133852854,505.64082419,0.00037499,60]
[392914487,1762133853150,517.81964625,0.00037499,60]
[392914488,1762133853297,500.0,0.00037499,60]
[392914489,1762133853540,559.24576354,0.00037499,60]
[392914490,1762133857868,500.0,0.00037507,60]
[392914491,1762133858078,509.83885928,0.00037507,60]
[392914492,1762133862109,501.73541009,0.00037507,60]
[392914493,1762133862179,500.0,0.00037507,60]
[392914494,1762133862484,509.33475113,0.00037507,60]
[392914495,1762133862760,500.0,0.00037507,60]
[392914496,1762133862932,500.0,0.00037507,60]
[392914497,1762133863003,511.50628834,0.00037507,60]
[392914498,1762133863178,513.9733471,0.00037507,60]
[392914499,1762133863519,501.13567868,0.00037507,60]
[392914500,1762133865345,500.0,0.00037507,60]
[392914501,1762133865504,247.07876914,0.00037507,60]
[392914502,1762133865645,502.23486735,0.00037507,60]
[392914503,1762133867614,500.0,0.00037507,60]
[392914504,1762133867855,514.69779143,0.00037507,60]
[392914505,1762133867917,500.0,0.00037507,60]
[392914506,1762133868108,485.36204582,0.00037507,60]
[392914507,1762133869631,500.0,0.00037507,60]
[392914508,1762133869862,501.95075654,0.00037507,60]
[392914509,1762133872016,500.79295444,0.00037507,60]
[392914510,1762133873404,500.0,0.00037507,60]
[392914511,1762133873648,501.29093798,0.00037507,60]
[392914512,1762133874717,516.69584107,0.00037507,60]
[392914513,1762133875388,500.0,0.00037507,60]
[392914514,1762133875618,502.27749286,0.00037507,60]
[392914516,1762133876059,437.93,0.00037507,60]
[392914517,1762133876306,500.0,0.00037507,60]
[392914518,1762133877020,500.0,0.00037507,60]
[392914519,1762133877262,504.30227151,0.00037507,60]
[392914520,1762133878070,500.0,0.00037507,60]
[392914521,1762133879183,503.56652848,0.00037507,60]
[392914522,1762133879692,500.0,0.00037507,60]
[392914523,1762133879796,500.0,0.00037507,60]
[392914525,1762133881466,500.0,0.00037507,60]
[392914526,1762133883817,500.0,0.00037507,60]
[392914527,1762133884028,504.16339496,0.00037507,60]
[392914528,1762133884095,500.0,0.00037507,60]
[392914529,1762133884123,192.03,0.00016234,2]
[392914530,1762133884190,502.69977671,0.00037507,60]
[392914531,1762133884296,569.71527139,0.00037507,60]
[392914532,1762133885370,500.0,0.00037507,60]
[392914533,1762133885651,503.59441845,0.00037507,60]
[392914534,1762133886176,504.56956231,0.00037507,60]
[392914535,1762133886841,500.0,0.00037507,60]
[392914536,1762133887815,500.0,0.00037507,60]
[392914537,1762133887888,502.69536502,0.00037507,60]
[392914538,1762133888046,512.10028865,0.00037507,60]
[392914539,1762133891816,501.14294016,0.00037507,60]
[392914540,1762133895719,504.68241883,0.00037507,60]
[392914541,1762133897804,500.0,0.00037507,60]
[392914542,1762133898076,156.57263083,0.00037507,60]
[392914543,1762133898848,500.0,0.00037507,60]
[392914544,1762133899088,416.45,0.00037507,60]
[392914545,1762133899457,500.0,0.00037507,60]
[392914546,1762133899713,501.99554636,0.00037507,60]
[392914547,1762133899938,500.0,0.00037507,60]
[392914548,1762133900165,532.12436714,0.00037507,60]
[392914549,1762133900438,594.78614121,0.00037507,60]
[392914550,1762133901814,501.70129317,0.00037507,60]
[392914551,1762133902281,500.0,0.00037507,60]
[392914552,1762133903771,500.66884929,0.00037507,60]
[392914553,1762133905877,500.0,0.00037507,60]
[392914554,1762133906127,502.9884413,0.00037507,60]
[392914555,1762133906524,500.0,0.00037507,60]
[392914556,1762133906799,558.03835806,0.00037507,60]
[392914557,1762133908704,500.0,0.00037507,60]
[392914558,1762133908964,500.0,0.00037507,60]
[392914559,1762133909213,569.62244031,0.00037507,60]
[392914560,1762133910942,500.0,0.00037507,60]
[392914561,1762133911186,515.42016057,0.00037507,60]
[392914562,1762133911512,500.0,0.00037507,60]
[392914563,1762133911770,500.0,0.00037507,60]
[392914564,1762133914167,503.60985824,0.00037507,60]
[392914565,1762133918190,526.58771891,0.00037507,60]
[392914566,1762133918918,500.0,0.00037507,60]
[392914567,1762133924108,504.98913404,0.00037507,60]
[392914568,1762133926932,500.0,0.00037507,60]
[392914569,1762133927170,539.61454743,0.00037507,60]
[392914570,1762133927734,500.0,0.00037507,60]
[392914571,1762133927974,507.3669708,0.00037507,60]
[392914572,1762133929762,500.0,0.00037507,60]
[392914573,1762133930138,506.66724298,0.00037507,60]
[392914574,1762133930836,500.0,0.00037507,60]
[392914575,1762133931073,500.0,0.00037507,60]
[392914576,1762133932182,500.0,0.00037507,60]
[392914577,1762133932336,500.0,0.00037507,60]
[392914578,1762133932444,505.50667352,0.00037507,60]
[392914579,1762133932578,500.0,0.00037507,60]
[392914580,1762133934411,500.0,0.00037507,60]
[392914581,1762133934596,500.0,0.00037507,60]
[392914582,1762133934660,500.0,0.00037507,60]
[392914583,1762133934871,504.38626777,0.00037507,60]
[392914584,1762133936322,502.6175858,0.00037507,60]
[392914585,1762133937729,500.0,0.00037507,60]
[392914586,1762133938026,500.0,0.00037507,60]
[392914587,1762133938273,500.0,0.00037507,60]
[392914588,1762133938334,587.16607071,0.00037507,60]
[392914589,1762133938521,595.83816875,0.00037507,60]
[392914590,1762133938613,502.87810907,0.00037507,60]
[392914591,1762133940014,500.0,0.00037507,60]
[392914592,1762133940276,501.82298367,0.00037507,60]
[392914593,1762133940345,500.0,0.00037507,60]
[392914594,1762133940410,503.47840022,0.00037507,60]
[392914595,1762133940601,502.95523017,0.00037507,60]
[392914596,1762133942381,500.0,0.00037507,60]
[392914597,1762133942632,504.09426953,0.00037507,60]
[392914598,1762133944567,500.0,0.00037507,60]
[392914599,1762133944730,234.99,0.00037507,60]
[392914600,1762133944798,500.97962143,0.00037507,60]
[392914601,1762133946282,500.0,0.00037507,60]
[392914602,1762133946490,500.0,0.00037507,30]
[392914603,1762133946555,221.25923619,0.00037507,60]
[392914604,1762133946767,503.20461991,0.00037507,30]
[392914605,1762133949342,500.0,0.00037507,60]
[392914606,1762133949592,500.0,0.00037507,60]
[392914607,1762133949833,500.0,0.00037507,60]
[392914608,1762133950120,500.0,0.00037507,60]
[392914609,1762133950177,181.34243351,0.00037507,60]
[392914610,1762133950357,500.96299898,0.00037507,60]
[392914611,1762133950431,500.0,0.00037507,60]
[392914612,1762133950696,407.97391163,0.00037507,60]
[392914613,1762133953876,500.0,0.00037507,60]
[392914614,1762133954116,588.78234774,0.00037507,60]
[392914615,1762133954181,500.97900245,0.00037507,60]
[392914616,1762133957703,500.0,0.00037507,60]
[392914617,1762133957938,409.44203295,0.00037507,60]
[392914618,1762133959296,500.0,0.00037507,60]
[392914619,1762133959566,505.17004358,0.00037507,60]
[392914620,1762133964099,469.735,0.00032877,120]
[392914621,1762133964469,500.0,0.00037507,60]
[392914622,1762133964695,632.46268928,0.00037507,60]
[392914623,1762133964825,500.0,0.00037507,60]
[392914624,1762133965140,500.0,0.00037507,60]
[392914625,1762133965303,332.40809011,0.00037507,60]
[392914626,1762133966409,500.0,0.00037507,60]
[392914627,1762133966656,502.50546592,0.00037507,60]
[392914628,1762133967931,500.0,0.00037507,60]
[392914629,1762133968189,500.0,0.00037507,60]
[392914630,1762133968418,515.72084548,0.00037507,60]
[392914631,1762133968499,500.0,0.00037507,60]
[392914632,1762133968740,191.4291905,0.00037507,60]
[392914633,1762133972580,500.0,0.00037507,60]
[392914634,1762133972815,500.0,0.00037507,60]
[392914635,1762133973056,500.0,0.00037507,60]
[392914636,1762133973118,500.0,0.00037507,60]
[392914637,1762133973183,502.78400759,0.00037507,60]
[392914638,1762133973287,515.06380288,0.00037507,60]
[392914639,1762133973349,500.0,0.00037507,60]
[392914640,1762133975419,152.13,0.000328,120]
[392914641,1762133976894,500.0,0.00037507,60]
[392914642,1762133977123,213.36,0.00037507,60]